bitfinex/quotes_ETHUSD_20240916
["timestamp","ask_amount","ask_price","bid_price","bid_amount"]
[1726452329498,0.45277927,2280.9,2280.2,4.38548]
[1726452329701,0.45277927,2280.9,2280.3,4.38538]
[1726452329702,8.76396,2280.8,2280.3,4.38538]
[1726452329901,10.08007157,2280.8,2280.3,4.38538]
[1726452330940,0.0130657,2280.9,2280.6,4.38469]
[1726452331124,0.0130657,2280.9,2280.4,0.63770191]
[1726452331444,0.0130657,2280.9,2280.6,4.38478]
[1726452331741,0.0130657,2280.9,2280.6,4.38471]
[1726452331952,0.0130657,2280.9,2280.6,8.76942]
[1726452332248,0.0130657,2280.9,2280.7,4.38452]
[1726452332249,0.11740514,2280.8,2280.7,4.38452]
[1726452332747,0.11740514,2280.8,2280.6,8.76939]
[1726452332902,0.11740514,2280.8,2280.6,8.76938]
[1726452333210,0.11740514,2280.8,2280.0,4.5625]
[1726452333211,4.38474,2280.7,2280.1,3.0]
[1726452333412,9.50913451,2280.6,2280.1,4.38576]
[1726452333649,0.11743061,2280.5,2280.1,4.38576]
[1726452333940,0.11743061,2280.5,2280.0,8.77168]
[1726452334096,3.11743061,2280.5,2279.4,8.85807]
[1726452334300,4.38558,2280.2,2279.6,4.38662]
[1726452334524,4.38558,2280.2,2279.4,8.85805]
[1726452334739,0.11720983,2280.1,2279.6,4.38669]
[1726452335111,0.11720983,2280.1,2279.7,4.38652]
[1726452336259,0.11720983,2280.1,2279.7,0.08772138]
[1726452336748,0.11720983,2280.1,2279.6,5.711074]
[1726452337317,0.11720983,2280.1,2279.7,4.38643]
[1726452338417,0.11720983,2280.1,2279.6,5.711074]
[1726452338418,0.11720983,2280.1,2279.6,10.097694]
[1726452338607,0.11720983,2280.1,2279.7,4.3865]
[1726452339013,4.38545,2280.3,2279.7,4.3865]
[1726452339338,0.11673413,2280.2,2279.7,4.3865]
[1726452339941,4.50235413,2280.2,2279.7,4.3865]
[1726452340156,4.50235413,2280.2,2279.6,8.77323]
[1726452340304,4.50235413,2280.2,2279.4,4.4711]
[1726452340305,4.5404,2280.1,2279.4,4.38697]
[1726452340659,4.38657,2279.7,2279.2,4.38742]
[1726452340810,0.11682759,2279.6,2279.3,4.38715]
[1726452341151,4.38616,2279.9,2279.4,4.38701]
[1726452341371,0.11682759,2279.5,2279.4,4.38701]
[1726452341671,0.11682759,2279.5,2279.2,8.77469]
[1726452341843,4.38637,2279.8,2279.3,4.38729]
[1726452342048,0.11682759,2279.7,2279.6,4.38673]
[1726452342244,11.9204,2280.1,2279.6,8.86118581]
[1726452342437,4.50280759,2280.0,2279.6,4.47445581]
[1726452342775,4.50280759,2280.0,2279.5,4.38691]
[1726452343276,4.38644,2279.8,2279.1,3.55]
[1726452343577,4.38687,2279.6,2279.0,4.38777]
[1726452343955,1.80656584,2279.9,2278.9,0.0249465]
[1726452343956,4.5744,2279.3,2278.9,0.0249465]
[1726452344478,0.11555324,2279.2,2278.9,0.0249465]
[1726452344677,8.96182,2279.3,2278.9,0.0249465]
[1726452345016,4.50317324,2279.2,2278.9,0.0249465]
[1726452345200,1.46205256,2279.2,2278.9,0.0249465]
[1726452345479,13.35016,2279.0,2278.9,0.0249465]
[1726452345697,20.85313414,2279.0,2278.9,0.0249465]
[1726452346336,25.24101414,2279.0,2278.9,0.0249465]
[1726452346569,25.24101414,2279.0,2278.2,0.0380122]
[1726452346570,8.96363,2278.3,2278.2,0.0380122]
[1726452346749,14.688129,2278.3,2278.2,0.0380122]
[1726452346944,17.80320613,2278.3,2278.2,0.0380122]
[1726452347465,13.41397613,2278.3,2278.2,0.0380122]
[1726452348099,17.80320613,2278.3,2278.2,0.0380122]
[1726452348269,3.0,2278.2,2277.1,5.71408544]
[1726452348611,3.0,2278.2,2277.6,4.39054]
[1726452348612,0.11458377,2278.1,2277.6,4.39054]
[1726452348756,0.11458377,2278.1,2277.7,0.55]
[1726452349089,0.0380122,2278.9,2278.0,4.38981]
[1726452349090,7.443,2278.6,2278.0,4.38981]
[1726452349403,4.443,2278.6,2278.2,4.38942]
[1726452349602,4.3518122,2278.9,2278.4,4.38902]
[1726452349757,5.66455742,2278.9,2278.4,4.38902]
[1726452349961,10.05263742,2278.9,2278.2,4.47703332]
[1726452350187,10.05263742,2278.9,2278.4,4.38902]
[1726452350188,5.65654082,2278.9,2278.4,4.38902]
[1726452350554,10.04463082,2278.9,2278.3,0.08777335]
[1726452350900,1.00445608,2278.8,2278.3,4.47696335]
[1726452351496,8.7318856,2278.9,2278.5,4.38881]
[1726452351497,0.11458377,2278.7,2278.5,4.38881]
[1726452351710,0.11458377,2278.7,2278.5,8.86531229]
[1726452351871,0.0299956,2278.9,2278.6,4.38863]
[1726452352075,0.11458377,2278.8,2278.7,4.38842]
[1726452352383,0.11458377,2278.8,2278.6,4.4763821]
[1726452352384,0.11458377,2278.8,2278.5,4.38881]
[1726452352598,0.0299956,2278.9,2278.4,5.02668215]
[1726452352796,0.11458377,2278.8,2278.6,4.47631215]
[1726452353116,0.11458377,2278.8,2278.7,4.38846]
[1726452353834,0.11458377,2278.8,2278.4,5.2939]
[1726452353989,0.11458377,2278.8,2278.5,0.08776221]
[1726452354508,0.11458377,2278.8,2278.6,4.38853]
[1726452355609,0.11458377,2278.8,2278.5,4.38884]
[1726452355814,0.11458377,2278.8,2278.5,4.38874]
[1726452356022,0.11458377,2278.8,2278.4,0.63776224]
[1726452356173,0.11458377,2278.8,2278.4,0.55]
[1726452356586,0.11458377,2278.8,2278.4,4.93897]
[1726452357134,0.11458377,2278.8,2278.5,4.38885]
[1726452357291,0.11458377,2278.8,2278.7,4.38846]
[1726452357482,0.11458377,2278.8,2278.7,8.86115207]
[1726452357708,0.0299956,2278.9,2278.8,4.38827]
[1726452357888,0.0299956,2278.9,2278.7,8.77682]
[1726452358081,0.0299956,2278.9,2278.7,4.38836]
[1726452358323,0.0299956,2278.9,2278.7,4.38835]
[1726452358692,0.0299956,2278.9,2278.4,0.55]
[1726452359023,0.0299956,2278.9,2278.5,4.38875]
[1726452359425,0.0299956,2278.9,2278.4,0.63776216]
[1726452359723,4.5746,2278.8,2278.3,4.38911]
[1726452359934,5.47387856,2278.8,2278.3,0.08776646]
[1726452360105,9.86226856,2278.8,2278.2,4.38942]
[1726452360305,5.47387856,2278.8,2278.3,4.38912]
[1726452360619,0.55038742,2278.7,2277.9,4.38987]
[1726452360820,0.55038742,2278.7,2277.8,4.2927]
[1726452360987,4.93889742,2278.7,2278.1,4.38948]
[1726452361826,8.96302,2278.8,2278.3,4.38913]
[1726452362036,4.5746,2278.8,2278.3,4.38913]
[1726452362191,7.4099956,2278.9,2278.1,0.447726]
[1726452362192,7.4099956,2278.9,2278.5,4.38882]
[1726452362523,0.0299956,2278.9,2278.7,4.38841]
[1726452363345,0.0299956,2278.9,2278.6,8.77709]
[1726452363630,0.0299956,2278.9,2278.6,4.38854]
[1726452364105,0.0299956,2278.9,2278.7,0.08776168]
[1726452364303,0.0299956,2278.9,2278.5,4.38883]
[1726452364505,4.4181756,2278.9,2278.4,4.38889]
[1726452364715,1.79476316,2278.9,2278.4,4.38889]
[1726452365229,0.11015232,2278.8,2278.2,0.55]
[1726452365388,0.11015232,2278.8,2278.6,4.38855]
[1726452365594,0.11015232,2278.8,2278.5,4.38868]
[1726452366049,0.11015232,2278.8,2278.5,4.38883]
[1726452366333,4.49854232,2278.8,2278.3,4.3891]
[1726452366543,4.49854232,2278.8,2278.3,8.77822]
[1726452366544,0.11015232,2278.8,2278.3,8.77822]
[1726452366725,0.11015232,2278.8,2278.3,4.47687069]
[1726452366888,0.11015232,2278.8,2278.4,4.38893]
[1726452367093,0.11015232,2278.8,2278.4,4.47669861]
[1726452367677,4.49856232,2278.8,2278.3,4.3891]
[1726452367900,4.3174,2278.7,2278.1,4.38946]
[1726452368095,4.3174,2278.7,2277.6,9.44355736]
[1726452368096,0.11008427,2278.6,2277.6,9.44355736]
[1726452368326,4.92070281,2278.6,2278.0,4.38967]
[1726452368500,4.92069281,2278.6,2278.0,4.38967]
[1726452368705,0.1099652,2278.5,2278.1,4.38961]
[1726452369700,6.610586,2278.5,2277.9,4.38986]
[1726452370145,6.610586,2278.5,2277.8,0.55]
[1726452370146,4.38941,2278.3,2277.8,0.55]
[1726452370344,0.09131564,2278.4,2277.5,4.39061]
[1726452370345,8.90905564,2278.2,2277.5,4.39061]
[1726452370498,4.53796953,2278.2,2277.5,4.39066]
[1726452370693,4.53796953,2278.2,2277.7,4.4205]
[1726452370694,0.10976953,2278.2,2277.7,4.4205]
[1726452370895,13.9198808,2278.5,2277.7,4.4205]
[1726452370896,11.8082,2278.5,2278.2,4.38942]
[1726452371133,0.10960785,2278.4,2278.2,4.38942]
[1726452371454,0.10960785,2278.4,2277.8,4.39003]
[1726452371736,0.10960785,2278.4,2277.8,4.39017]
[1726452371737,4.38933,2278.3,2277.8,4.39017]
[1726452371907,0.10960785,2278.4,2278.1,4.38947]
[1726452372253,4.4282,2278.5,2278.1,4.4772479]
[1726452372254,0.10964189,2278.2,2278.1,4.4772479]
[1726452372423,8.81706,2278.5,2277.9,4.38982]
[1726452372753,4.38922,2278.4,2277.9,4.38982]
[1726452372964,4.49886189,2278.4,2277.9,4.38982]
[1726452373116,4.38924,2278.3,2277.8,4.39013]
[1726452373313,1.45508702,2278.3,2277.9,4.3899]
[1726452373519,14.44094828,2278.5,2278.0,4.38977]
[1726452373520,10.05198828,2278.5,2278.0,4.38977]
[1726452373719,0.10964189,2278.2,2278.0,4.38977]
[1726452373931,14.44093828,2278.5,2278.0,4.38977]
[1726452374119,0.10613081,2278.1,2277.9,8.7798]
[1726452374340,14.44093828,2278.5,2277.6,4.89405736]
[1726452374341,4.4282,2278.5,2278.0,0.08778816]
[1726452374618,7.91192281,2278.6,2277.6,4.89405736]
[1726452374619,4.3892,2278.4,2277.7,9.30413074]
[1726452374819,7.38,2278.6,2277.7,4.94024]
[1726452374820,4.6919,2278.2,2277.7,4.94024]
[1726452375051,11.8582,2278.6,2277.9,0.55]
[1726452375240,7.38,2278.6,2278.3,4.38923]
[1726452375438,0.0299956,2278.9,2278.4,4.38904]
[1726452375439,4.4181456,2278.9,2278.4,4.38904]
[1726452375673,4.4181456,2278.9,2278.4,4.47680225]
[1726452375857,0.0299956,2278.9,2278.4,4.47669225]
[1726452376531,7.4182156,2278.9,2278.4,4.47669225]
[1726452376728,4.38827,2278.8,2278.3,4.3372]
[1726452376959,4.38827,2278.8,2278.4,0.63776518]
[1726452377265,3.0299956,2278.9,2278.4,5.02675518]
[1726452377480,7.4181356,2278.9,2278.4,0.63776518]
[1726452377629,7.4181356,2278.9,2278.4,5.02677518]
[1726452377831,4.38829,2278.8,2278.4,0.63776518]
[1726452378143,3.09769094,2278.9,2278.4,5.02670495]
[1726452378348,0.0299956,2278.9,2278.4,5.02670495]
[1726452378548,0.0299956,2278.9,2278.5,4.38881]
[1726452378771,0.0299956,2278.9,2278.4,5.02670495]
[1726452378772,0.0299956,2278.9,2278.4,4.93894]
[1726452378997,0.0299956,2278.9,2278.4,5.02668426]
[1726452379137,0.0299956,2278.9,2278.5,4.38874]
[1726452380055,4.4180956,2278.9,2278.4,4.93892]
[1726452380442,6.48452316,2278.9,2278.3,8.7263]
[1726452380641,10.87272316,2278.9,2278.3,8.7263]
[1726452380885,6.48452316,2278.9,2278.2,8.77861]
[1726452381087,4.38848,2278.7,2278.0,8.94362]
[1726452381288,4.63781564,2278.8,2278.0,8.9436]
[1726452381289,8.93479,2278.8,2278.0,8.9436]
[1726452381577,8.93479,2278.8,2278.1,4.38945]
[1726452381578,4.5465,2278.8,2278.1,4.38945]
[1726452381777,1.44482342,2278.7,2278.1,4.38945]
[1726452382337,1.44482342,2278.7,2278.0,10.0]
[1726452382544,4.38878,2278.6,2278.0,14.38979]
[1726452383114,0.10956742,2278.5,2278.0,14.38979]
[1726452383476,4.38943,2278.2,2278.0,10.0]
[1726452383677,0.438943,2278.1,2278.0,10.0]
[1726452383877,0.10953338,2278.1,2278.0,10.0]
[1726452384132,4.2443,2278.4,2278.0,10.0]
[1726452384347,0.10953338,2278.1,2278.0,10.0]
[1726452384617,0.10953338,2278.1,2278.0,14.38981]
[1726452384788,4.2443,2278.4,2278.0,14.38981]
[1726452384977,0.10931214,2278.1,2278.0,18.77962]
[1726452385179,12.0659,2278.7,2278.1,4.38947]
[1726452385391,4.6859,2278.7,2278.1,4.38947]
[1726452385604,4.6859,2278.7,2278.0,14.38981]
[1726452385605,12.0659,2279.0,2278.3,4.3891]
[1726452385823,12.0659,2279.0,2278.4,0.55]
[1726452385979,12.0659,2279.0,2278.4,4.93894]
[1726452386174,12.0659,2279.0,2278.5,4.3888]
[1726452386628,5.62766516,2278.9,2278.2,4.38934]
[1726452386845,4.3883,2278.8,2278.2,4.38934]
[1726452387040,0.56278852,2278.7,2278.2,8.77866]
[1726452387203,4.38832,2278.8,2278.2,4.38932]
[1726452387400,8.80786,2278.7,2278.0,23.08421]
[1726452387602,8.80786,2278.7,2278.0,23.0842]
[1726452387926,8.80786,2278.7,2278.2,4.38941]
[1726452387927,4.4193,2278.7,2278.2,4.38941]
[1726452388129,1.319615,2278.6,2278.2,4.38941]
[1726452388309,4.4193,2278.7,2278.2,8.77874]
[1726452388505,8.80787,2278.7,2278.0,10.0]
[1726452388699,4.38895,2278.5,2278.0,10.0]
[1726452388904,5.0739,2278.4,2278.0,10.0]
[1726452389221,3.0,2278.3,2278.0,10.0]
[1726452389425,7.48054564,2278.3,2278.0,10.0]
[1726452389632,1.70348413,2278.2,2278.0,10.0]
[1726452389998,6.09294413,2278.2,2278.0,10.0]
[1726452390935,1.70348413,2278.2,2278.0,10.0]
[1726452392046,6.09294413,2278.2,2278.0,10.0]
[1726452392346,5.0739,2278.4,2278.0,10.0]
[1726452392512,9.4631,2278.4,2278.0,10.0]
[1726452392729,4.38923,2278.3,2278.0,10.0]
[1726452394603,5.0739,2278.4,2278.0,10.0]
[1726452395046,9.35351,2279.0,2278.3,4.38913]
[1726452395227,0.0299956,2278.9,2278.3,4.38913]
[1726452395727,0.0299956,2278.9,2278.4,4.38899]
[1726452395901,0.0299956,2278.9,2278.3,4.38913]
[1726452396346,0.10873345,2278.8,2278.3,4.38913]
[1726452396557,0.10873345,2278.8,2278.0,15.2192]
[1726452396558,4.98611564,2278.7,2278.0,15.2192]
[1726452396705,9.28701491,2278.6,2278.0,15.2192]
[1726452397127,4.38914,2278.4,2278.0,10.0]
[1726452397329,0.50948491,2278.6,2278.0,10.0]
[1726452397330,4.38962,2278.1,2278.0,10.0]
[1726452397519,0.54822302,2278.1,2278.0,10.0]
[1726452397722,0.10926102,2278.1,2278.0,10.0]
[1726452405613,0.10926102,2278.1,2278.0,19.29551]
[1726452405853,9.49639,2278.6,2278.0,19.29551]
[1726452406055,0.10896323,2278.1,2278.0,19.29551]
[1726452406253,4.38887,2278.5,2278.0,14.9057]
[1726452406558,4.38923,2278.3,2278.0,10.0]
[1726452406712,0.10896323,2278.2,2278.0,10.0]
[1726452406911,0.88874432,2278.2,2278.0,10.0]
[1726452407152,0.10896323,2278.1,2278.0,10.0]
[1726452407366,5.02186323,2278.1,2278.0,10.0]
[1726452408229,9.41148323,2278.1,2278.0,10.0]
[1726452408527,5.02186323,2278.1,2278.0,10.0]
[1726452408833,0.10896323,2278.1,2278.0,10.0]
[1726452409156,5.38736455,2278.1,2278.0,10.0]
[1726452409355,17.17960323,2278.1,2278.0,10.0]
[1726452409858,12.78998323,2278.1,2278.0,10.0]
[1726452410042,8.40036323,2278.1,2278.0,10.0]
[1726452410224,0.10896323,2278.1,2278.0,10.0]
[1726452410642,4.38944,2278.2,2278.0,10.0]
[1726452410844,0.84764337,2278.1,2278.0,10.0]
[1726452411041,0.10869937,2278.1,2278.0,10.0]
[1726452411727,13.84683937,2278.1,2278.0,10.0]
[1726452412322,16.84683937,2278.1,2278.0,10.0]
[1726452412828,21.23645937,2278.1,2278.0,10.0]
[1726452413034,23.36084277,2278.1,2278.0,10.0]
[1726452416860,11.58160277,2278.1,2278.0,10.0]
[1726452417079,13.84683937,2278.1,2278.0,10.0]
[1726452417374,9.45721937,2278.1,2278.0,10.0]
[1726452417579,4.49831937,2278.1,2278.0,10.0]
[1726452418752,7.49831937,2278.1,2278.0,10.0]
[1726452419172,0.10869937,2278.1,2278.0,10.0]
[1726452419339,5.42731077,2278.1,2278.0,10.0]
[1726452421882,0.10869937,2278.1,2278.0,10.0]
[1726452422264,3.0,2278.2,2278.0,10.0]
[1726452422583,0.10453362,2278.1,2278.0,10.0]
[1726452422739,3.0073746,2278.3,2278.0,10.0]
[1726452422933,0.10453362,2278.2,2278.0,10.0]
[1726452423239,4.38944,2278.2,2278.0,10.0]
[1726452423459,0.10453362,2278.1,2278.0,10.0]
[1726452424354,9.05210306,2278.3,2278.0,10.0]
[1726452424534,0.10453362,2278.2,2278.1,9.58811391]
[1726452424731,0.0073746,2278.3,2278.2,13.71829]
[1726452425058,0.0073746,2278.3,2278.2,14.43956]
[1726452425375,0.0073746,2278.3,2278.2,17.81189274]
[1726452426273,0.0073746,2278.3,2278.0,19.44255]
[1726452426474,0.0073746,2278.3,2278.2,13.83176]
[1726452427547,0.0073746,2278.3,2278.2,14.38176]
[1726452427771,0.0073746,2278.3,2278.2,24.648337]
[1726452428287,0.46550011,2278.3,2278.2,29.037767]
[1726452428436,0.46550011,2278.3,2278.2,25.75423124]
[1726452428772,0.0377763,2279.0,2278.2,25.75423124]
[1726452428773,0.0377763,2279.0,2278.9,5.2205]
[1726452429100,0.13701164,2279.0,2278.9,5.2205]
[1726452429379,0.13701164,2279.0,2278.9,5.30824852]
[1726452429564,0.13701164,2279.0,2278.9,14.63440852]
[1726452429895,0.0377763,2279.0,2278.9,14.63440852]
[1726452430167,0.0377763,2279.0,2278.9,16.09784937]
[1726452430397,0.0377763,2279.0,2278.9,23.48592937]
[1726452430672,7.38,2279.6,2279.5,14.59704]
[1726452430980,4.8500763,2280.3,2279.6,9.32346]
[1726452430981,0.0377763,2280.3,2279.6,9.32346]
[1726452431161,0.0377763,2280.3,2279.6,23.451494]
[1726452431361,0.0377763,2280.3,2279.6,27.838224]
[1726452431697,0.0377763,2280.3,2280.2,14.60276]
[1726452431831,0.0377763,2280.3,2280.2,16.501627]
[1726452432784,0.0377763,2280.3,2280.2,23.887207]
[1726452435689,0.0377763,2280.3,2280.2,28.272787]
[1726452436322,0.0377763,2281.0,2280.9,9.31846]
[1726452436495,0.0377763,2281.0,2280.9,19.839668]
[1726452436694,0.1385586,2281.0,2280.9,19.839668]
[1726452436994,0.0377763,2281.0,2280.9,18.455438]
[1726452437982,0.4578869,2281.4,2281.3,4.38346]
[1726452438182,0.5586692,2281.4,2281.3,4.93346]
[1726452438618,0.5586692,2281.4,2281.1,4.38381]
[1726452438778,0.1007823,2281.4,2281.0,4.93403]
[1726452438978,5.2409,2281.4,2281.0,0.55]
[1726452439190,0.1007823,2281.3,2281.0,0.55]
[1726452439598,0.1007823,2281.3,2281.1,4.38382]
[1726452439797,4.4327583,2281.6,2281.1,4.38382]
[1726452439999,0.1007823,2281.5,2281.1,4.38382]
[1726452440226,0.1007823,2281.5,2281.1,4.46785862]
[1726452440520,0.1007823,2281.5,2281.3,0.55]
[1726452441197,0.19209794,2281.5,2280.9,4.3841]
[1726452441401,4.4838723,2281.5,2280.9,4.3841]
[1726452441720,5.48845244,2281.5,2281.0,0.55]
[1726452442035,5.48845244,2281.5,2280.9,4.3841]
[1726452442187,9.87164244,2281.5,2280.9,4.3841]
[1726452442630,5.48845244,2281.5,2280.9,4.3841]
[1726452442840,0.1007823,2281.5,2281.4,4.38327]
[1726452443054,0.1007823,2281.5,2281.4,4.93327]
[1726452443254,0.1007823,2281.5,2281.2,4.3836]
[1726452443423,0.1007823,2281.5,2281.2,4.47120545]
[1726452443747,0.1007823,2281.5,2281.2,4.38355]
[1726452443948,0.1007823,2281.5,2281.1,0.55]
[1726452444545,0.59992644,2281.5,2281.2,4.38364]
[1726452444845,0.1007823,2281.5,2281.1,0.55]
[1726452445350,0.1007823,2281.5,2281.2,4.38363]
[1726452445849,0.1007823,2281.5,2281.1,0.55]
[1726452446542,0.1007823,2281.5,2280.5,7.38493]
[1726452446543,4.98308344,2281.5,2280.8,4.38428]
[1726452446779,4.38341,2281.4,2280.8,8.7686]
[1726452446917,5.0015,2281.3,2280.9,4.38418]
[1726452447107,5.10509274,2281.3,2280.9,4.38418]
[1726452449738,5.10509274,2281.3,2280.8,4.38428]
[1726452449934,5.10509274,2281.3,2280.8,4.38425]
[1726452450192,4.38394,2281.1,2280.5,4.38485]
[1726452450405,4.38467,2280.7,2280.2,4.38555]
[1726452450539,4.3852,2280.4,2279.8,9.48273]
[1726452450854,4.3852,2280.4,2279.8,9.48271]
[1726452450855,0.10343911,2280.3,2279.8,9.48271]
[1726452451035,0.10343911,2280.3,2279.9,4.38614]
[1726452451437,4.38561,2280.2,2279.6,4.38657]
[1726452451678,4.38561,2280.2,2279.6,4.38672]
[1726452451679,5.1856,2280.0,2279.6,4.38672]
[1726452452188,0.10304641,2279.9,2279.6,4.38672]
[1726452452546,0.10304641,2279.9,2279.4,4.38695]
[1726452452879,0.10304641,2279.9,2279.5,0.55]
[1726452453179,0.10304641,2279.9,2279.2,9.19002]
[1726452453180,5.45683905,2279.9,2279.2,4.38738]
[1726452453388,9.84311905,2279.9,2279.2,4.826118]
[1726452453554,4.38636,2279.8,2279.2,4.9138421]
[1726452453740,5.45678905,2279.9,2279.0,4.38781]
[1726452453741,4.7984,2279.6,2279.0,4.38775]
[1726452454245,0.10132983,2279.5,2279.0,4.38774]
[1726452454472,0.55921086,2279.5,2279.0,4.38774]
[1726452454679,0.55921086,2279.5,2278.8,4.38826]
[1726452454680,0.53576109,2279.4,2278.8,4.38826]
[1726452455087,4.92300109,2279.4,2278.8,4.38826]
[1726452455392,4.48863983,2279.3,2278.8,4.38826]
[1726452455678,4.48863983,2279.3,2278.6,13.67188]
[1726452455881,4.48863983,2279.3,2278.6,14.600216]
[1726452456064,4.48863983,2279.3,2278.7,0.55]
[1726452456457,4.48863983,2279.3,2278.7,5.02615379]
[1726452456654,4.48863983,2279.3,2278.7,0.63775379]
[1726452457043,4.48863983,2279.3,2278.7,5.02609379]
[1726452458111,0.10132983,2279.3,2278.8,4.38825]
[1726452458410,0.10132983,2279.3,2278.9,0.55]
[1726452458618,4.7984,2279.6,2279.1,0.55]
[1726452458772,0.10091957,2279.5,2279.1,0.55]
[1726452459375,0.10091957,2279.5,2279.1,0.63773913]
[1726452459581,0.10091957,2279.5,2279.2,4.38734]
[1726452460612,0.59085153,2279.5,2278.8,4.38824]
[1726452460777,4.38717,2279.4,2278.8,4.38813]
[1726452460972,5.37394372,2279.4,2278.8,4.38813]
[1726452461169,0.10091957,2279.3,2278.9,4.38802]
[1726452461918,4.87696196,2279.5,2278.9,4.38802]
[1726452462081,0.10091957,2279.2,2278.9,4.38802]
[1726452462281,0.9675362,2279.4,2278.9,4.38802]
[1726452462602,5.3547762,2279.4,2278.8,8.77629]
[1726452462922,0.10091957,2279.3,2278.9,4.38797]
[1726452463606,0.10091957,2279.3,2278.8,4.38813]
[1726452464116,4.48840957,2279.3,2278.7,0.55]
[1726452464579,4.48840957,2279.3,2278.8,4.38816]
[1726452464891,0.10091957,2279.3,2278.8,4.38816]
[1726452466102,0.10091957,2279.3,2278.7,4.93832]
[1726452466103,0.10091957,2279.3,2278.9,4.38806]
[1726452466680,4.9682976,2279.5,2278.9,4.38806]
[1726452466982,4.38721,2279.4,2278.9,4.38806]
[1726452467180,0.10023584,2279.3,2278.9,4.38806]
[1726452469224,0.10023584,2279.3,2279.2,4.3875]
[1726452469527,0.45787164,2279.8,2279.4,4.38698]
[1726452469725,4.8452,2279.9,2279.4,4.38698]
[1726452469922,4.8452,2279.9,2279.7,4.38643]
[1726452470428,4.8452,2279.9,2278.5,4.9469]
[1726452470429,4.8452,2279.4,2278.5,4.9469]
[1726452470625,4.8452,2279.4,2279.0,4.38784]
[1726452470982,5.1111,2279.8,2279.2,4.38738]
[1726452471187,4.38655,2279.7,2279.2,4.38738]
[1726452471387,0.09689465,2279.6,2279.2,4.38738]
[1726452472312,6.06083,2279.8,2279.2,4.38738]
[1726452472511,0.09698013,2279.5,2279.4,4.93711]
[1726452472712,12.4911,2280.1,2279.6,8.77321]
[1726452472895,12.4911,2280.1,2279.6,4.38659]
[1726452473321,0.45781553,2280.3,2279.9,0.55]
[1726452473516,0.45781553,2280.3,2280.0,4.38583]
[1726452473841,4.8355,2280.4,2280.0,4.38583]
[1726452474348,0.457685,2280.6,2280.0,4.38583]
[1726452474500,0.457685,2280.6,2280.2,4.38557]
[1726452474707,4.9983,2280.7,2280.4,0.55]
[1726452475216,4.9983,2280.7,2280.2,4.93557]
[1726452475801,9.38297,2280.7,2280.2,0.55]
[1726452476009,4.38502,2280.5,2279.9,9.55739]
[1726452476347,5.77095056,2280.5,2279.9,4.38599]
[1726452476647,5.77095056,2280.5,2279.7,4.3864]
[1726452476856,4.9983,2280.4,2279.5,4.3868]
[1726452477056,0.09131564,2280.3,2279.5,4.3868]
[1726452477269,3.09131564,2280.3,2279.3,10.04796574]
[1726452477460,4.9983,2279.8,2279.2,4.38736]
[1726452477813,4.38666,2279.7,2279.1,4.38756]
[1726452478018,4.38666,2279.7,2278.9,4.38797]
[1726452478019,4.38688,2279.6,2278.9,4.38797]
[1726452478356,4.88649,2279.7,2279.1,4.38756]
[1726452478517,8.77336,2279.7,2279.1,4.38756]
[1726452478714,4.38666,2279.7,2279.1,4.38756]
[1726452479060,4.38698,2279.5,2278.9,8.77591]
[1726452479262,0.938496,2279.6,2278.9,4.38793]
[1726452479428,4.38666,2279.7,2279.1,4.38766]
[1726452479625,4.38666,2279.7,2279.1,4.38756]
[1726452479825,4.38678,2279.6,2279.1,4.38756]
[1726452480238,4.38725,2279.4,2278.7,5.1273]
[1726452480417,9.2519,2279.2,2278.7,4.38828]
[1726452480725,4.8644,2279.2,2278.7,8.77664]
[1726452480932,4.8644,2279.2,2278.7,4.38828]
[1726452481463,10.70722364,2279.2,2278.4,9.66631]
[1726452481757,9.34332564,2279.2,2278.6,4.38863]
[1726452481969,4.38771,2279.1,2278.6,4.38863]
[1726452482262,4.38794,2279.0,2278.4,4.38891]
[1726452482462,4.8644,2279.2,2278.8,4.38826]
[1726452482668,4.38723,2279.4,2278.8,4.38826]
[1726452482669,4.38723,2279.4,2278.8,4.38815]
[1726452482969,4.38723,2279.4,2278.9,4.38795]
[1726452483170,8.1619,2279.5,2279.0,4.38785]
[1726452483318,5.1619,2279.5,2279.1,0.55]
[1726452483519,4.38644,2279.8,2279.2,4.38739]
[1726452483520,3.0,2279.7,2279.2,4.38739]
[1726452483846,4.89405736,2280.1,2279.5,0.55]
[1726452483847,12.3573,2280.1,2279.5,0.55]
[1726452484057,12.3573,2280.1,2279.8,4.38634]
[1726452484215,12.3573,2280.1,2279.4,4.38699]
[1726452484216,4.38608,2280.0,2279.4,4.38699]
[1726452484662,6.26978842,2280.1,2279.4,4.38699]
[1726452484663,4.9773,2280.1,2279.7,4.38653]
[1726452484966,4.9773,2280.1,2279.6,4.93656]
[1726452485762,3.56758423,2280.3,2279.8,4.93616]
[1726452485964,3.0,2280.3,2279.8,5.02387518]
[1726452486265,5.1,2280.4,2279.9,4.386]
[1726452486560,0.09101742,2280.2,2280.1,0.55]
[1726452486722,8.55649,2280.6,2280.0,0.55]
[1726452487066,9.53881,2280.7,2280.2,4.38545]
[1726452487362,9.53881,2280.7,2280.2,4.93557]
[1726452487363,0.09101742,2280.5,2280.2,4.93557]
[1726452487514,5.1542,2280.7,2280.3,4.47302642]
[1726452487715,0.09101742,2280.4,2280.3,0.08769642]
[1726452487965,4.38496,2280.6,2280.1,4.93564]
[1726452488260,4.38511,2280.5,2280.0,4.38582]
[1726452488466,4.47612742,2280.5,2279.9,0.55]
[1726452488675,4.47612742,2280.5,2279.9,4.93599]
[1726452488967,4.47612742,2280.5,2280.0,4.38585]
[1726452488968,0.09101742,2280.5,2280.0,4.38585]
[1726452489171,0.09101742,2280.5,2280.0,8.7717]
[1726452489322,0.09101742,2280.5,2280.0,4.38585]
[1726452490324,0.09101742,2280.5,2280.0,8.77171]
[1726452490824,0.09101742,2280.5,2280.1,4.38573]
[1726452492328,0.09101742,2280.5,2280.2,4.93557]
[1726452492635,0.09101742,2280.5,2279.5,4.38675]